fUSD/lending_fUSD_20260331
["ID","MTS","AMOUNT","RATE_DAILY","PERIOD"]
[419162037,1774975844472,-150.0,0.00015314,2]
[419162038,1774975844482,-502.0,0.00015389,3]
[419162039,1774975844491,-150.0,0.00015418,2]
[419162040,1774975844500,-340.0,0.00015424,2]
[419162041,1774975844509,-1809.27,0.00015438,2]
[419162042,1774975844519,-500.0,0.00015442,2]
[419162043,1774975844528,-500.0,0.00015442,2]
[419162044,1774975844537,-500.0,0.00015442,2]
[419162045,1774975844547,-500.0,0.00015442,2]
[419162046,1774975844556,-500.0,0.00015442,2]
[419162047,1774975844566,-500.0,0.00015442,2]
[419162048,1774975844576,-500.0,0.00015442,2]
[419162049,1774975844585,-500.0,0.00015442,2]
[419162050,1774975844594,-500.0,0.00015442,2]
[419162051,1774975844605,-500.0,0.00015442,2]
[419162052,1774975844618,-500.0,0.00015442,2]
[419162053,1774975844627,-500.0,0.00015442,2]
[419162054,1774975844637,-500.0,0.00015442,2]
[419162055,1774975844647,-611.31127007,0.00015442,2]
[419162056,1774975844657,-500.0,0.00015442,2]
[419162057,1774975844667,-500.0,0.00015442,2]
[419162058,1774975844676,-500.0,0.00015442,2]
[419162059,1774975844685,-500.0,0.00015442,2]
[419162060,1774975844694,-500.0,0.00015442,2]
[419162061,1774975844703,-500.0,0.00015442,2]
[419162062,1774975844712,-500.0,0.00015442,2]
[419162063,1774975844720,-500.0,0.00015442,2]
[419162064,1774975844729,-500.0,0.00015442,2]
[419162065,1774975844738,-500.0,0.00015442,2]
[419162066,1774975844747,-500.0,0.00015442,2]
[419162067,1774975844757,-500.0,0.00015442,2]
[419162068,1774975844766,-500.0,0.00015442,2]
[419162069,1774975844775,-179.50551657,0.00015442,2]
[419162070,1774975844789,-250.12939253,0.00015442,2]
[419162071,1774975844800,-70.3650909,0.00015442,2]
[419162072,1774975844808,-500.0,0.00015442,2]
[419162073,1774975844817,-230.11103042,0.00015442,2]
[419162074,1774975844829,-269.88896958,0.00015442,2]
[419162075,1774975844838,-500.0,0.00015442,2]
[419162076,1774975844848,-257.0,0.00015442,2]
[419162077,1774975844857,-500.0,0.00015442,2]
[419162078,1774975844869,-500.0,0.00015442,2]
[419162079,1774975844878,-500.0,0.00015442,2]
[419162080,1774975844887,-184.02985109,0.00015442,2]
[419162081,1774975844896,-150.0,0.00015467,2]
[419162082,1774975844906,-340.0,0.00015468,2]
[419162083,1774975844915,-340.0,0.00015475,2]
[419162084,1774975844924,-154.67990681,0.00015497,2]
[419162085,1774975844934,-340.0,0.00015532,2]
[419162086,1774975844943,-96.12515332,0.00015543,2]
[419162087,1774975844954,-53.87484668,0.00015543,2]
[419162088,1774975844963,-150.0,0.00015543,2]
[419162089,1774975844973,-150.0,0.00015564,2]
[419162090,1774975844981,-201.72966413,0.00015571,2]
[419162091,1774975844992,-138.27033587,0.00015571,2]
[419162092,1774975845002,-150.0,0.000156,2]
[419162093,1774975845012,-150.0,0.000156,2]
[419162094,1774975845021,-168.19276305,0.0001568,2]
[419162095,1774975845031,-158.40124687,0.0001568,2]
[419162099,1774975846686,-2.59875313,0.0001568,2]
[419162100,1774975846695,-185.679086,0.0001568,7]
[419162101,1774975846704,-331.158872,0.0001568,7]
[419162102,1774975846714,-150.0,0.00015709,2]
[419162104,1774975846723,-150.0,0.00015733,2]
[419162106,1774975846733,-150.0,0.00015771,2]
[419162108,1774975846742,-150.0,0.00015771,2]
[419162109,1774975846751,-449.0,0.00015781,2]
[419162110,1774975846760,-340.0,0.00015798,2]
[419162111,1774975846770,-1000.0,0.00015831,2]
[419162112,1774975846779,-889.957,0.00015831,2]
[419162113,1774975846789,-620.1734079,0.00015835,2]
[419162114,1774975846798,-1349.67453501,0.00015841,2]
[419162115,1774975846808,-150.0,0.00015855,2]
[419162116,1774975846817,-420.0,0.00015871,2]
[419162117,1774975846826,-200.0,0.00015872,2]
[419162118,1774975846835,-269.82593976,0.000159,2]
[419162119,1774975846844,-317.29882586,0.000159,2]
[419162120,1774975846860,-2166.19577414,0.000159,2]
[419162121,1774975846870,-523.33685502,0.000159,2]
[419162122,1774975846879,-1186.23524132,0.000159,2]
[419162123,1774975846888,-223.439491,0.000159,2]
[419162124,1774975846897,-445.34464938,0.000159,2]
[419162125,1774975846906,-947.7512165,0.00015934,2]
[419162126,1774975846915,-340.0,0.00015939,2]
[419162127,1774975846925,-2351.0,0.00015974,2]
[419162128,1774975846934,-175.91330646,0.00015987,2]
[419162129,1774975846943,-238.07579298,0.00015987,2]
[419162130,1774975846953,-340.0,0.00015989,2]
[419162131,1774975846962,-164.64394981,0.0001599,2]
[419162132,1774975846971,-158.7225411,0.00015997,2]
[419162134,1774975846980,-348.36,0.00015999,2]
[419162136,1774975846988,-155.0,0.00015999,2]
[419162137,1774975846997,-150.0,0.00016,2]
[419162138,1774975847006,-150.0,0.00016,2]
[419162139,1774975847015,-150.0,0.00016,2]
[419162140,1774975847025,-150.0,0.00016,2]
[419162141,1774975847033,-150.0,0.00016,2]
[419162142,1774975847041,-150.0,0.00016,2]
[419162143,1774975847049,-150.0,0.00016,2]
[419162144,1774975847056,-150.0,0.00016,2]
[419162145,1774975847063,-150.0,0.00016,2]
[419162146,1774975847070,-7200.45466943,0.00016,2]
[419162147,1774975847078,-2509.07303865,0.00016,2]
[419162148,1774975847103,-3511.86242303,0.00016,2]
[419162149,1774975847113,-2343.68669856,0.00016,2]
[419162150,1774975847204,-4179.31312718,0.00016,2]
[419162151,1774975847514,-645.26985,0.00016,2]
[419162152,1774975847564,-51.50792645,0.00016,2]
[419162153,1774975847590,-6744.28269683,0.00016,2]
[419162154,1774975847601,-593.18302833,0.00016,2]
[419162155,1774975847631,-595.20778578,0.00016,2]
[419162158,1774976248164,329.92,0.00017,15]
[419162164,1774976848155,-287.54865139,0.000117,5]
[419162165,1774976851097,-293.45134861,0.000117,5]
[419162166,1774976851117,-1310.21715106,0.0001266,2]
[419162168,1774976956091,-435.26,0.00012335,2]
[419162169,1774976956115,-754.09,0.00012489,2]
[419162170,1774976956137,-689.78284894,0.0001266,2]
[419162171,1774976956157,-205.26663935,0.00012704,2]
[419162172,1774976956177,-453.7987,0.00012804,2]
[419162173,1774976956198,-1763.94273469,0.00012848,2]
[419162175,1774977009837,1619.15051921,9.5e-05,3]
[419162179,1774977032213,-1134.09669,9.5e-05,3]
[419162180,1774977032227,-450.0,9.5e-05,3]
[419162181,1774977032314,-28304.3887259,9.5e-05,3]
[419162182,1774977032324,-1765.05615,0.0001,2]
[419162183,1774977032333,-200.0,0.00012178,2]
[419162184,1774977032343,-88.47726531,0.00012848,2]
[419162185,1774977032352,-300.0,0.00012898,2]
[419162186,1774977032362,-300.0,0.00012898,2]
[419162187,1774977032371,-1200.0,0.00012898,2]
[419162188,1774977032380,-300.0,0.00012898,2]
[419162189,1774977032390,-25771.17279141,0.00012899,2]
[419162190,1774977032402,-11850.87640859,0.00012899,2]
[419162191,1774977032412,-205.26663935,0.000129,2]
[419162192,1774977032421,-1635.51925183,0.00012904,2]
[419162193,1774977032431,-151.0,0.0001296,2]
[419162194,1774977032440,-500.0,0.00012973,2]
[419162195,1774977032450,-332.23329004,0.00012973,2]
[419162196,1774977032460,-151.0,0.00012978,2]
[419162197,1774977032469,-151.36,0.00012984,2]
[419162199,1774977032479,-1200.0,0.00012998,2]
[419162200,1774977032488,-150.0,0.00012998,2]
[419162201,1774977032498,-300.0,0.00012998,2]
[419162202,1774977032507,-588.93570101,0.00012998,2]
[419162203,1774977032517,-500.0,0.00012998,2]
[419162204,1774977032526,-500.0,0.00012998,2]
[419162205,1774977032535,-500.0,0.00012998,2]
[419162206,1774977032544,-500.0,0.00012998,2]
[419162207,1774977032554,-333.24960743,0.00012998,2]
[419162208,1774977032563,-500.0,0.00012998,2]
[419162209,1774977032572,-500.0,0.00012998,2]
[419162210,1774977032581,-500.0,0.00012998,2]
[419162211,1774977032591,-500.0,0.00012998,2]
[419162212,1774977032600,-500.0,0.00012998,2]
[419162213,1774977032609,-500.0,0.00012998,2]
[419162214,1774977032619,-500.0,0.00012998,2]
[419162215,1774977032628,-500.0,0.00012998,2]
[419162216,1774977032638,-500.0,0.00012998,2]
[419162217,1774977032647,-500.0,0.00012998,2]
[419162218,1774977032657,-500.0,0.00012998,2]
[419162219,1774977032667,-500.0,0.00012998,2]
[419162220,1774977032676,-500.0,0.00012998,2]
[419162221,1774977032685,-500.0,0.00012998,2]
[419162222,1774977032694,-500.0,0.00012998,2]
[419162223,1774977032703,-500.0,0.00012998,2]
[419162224,1774977032712,-500.0,0.00012998,2]
[419162225,1774977032722,-500.0,0.00012998,2]
[419162226,1774977032731,-500.0,0.00012998,2]
[419162227,1774977032740,-72037.0509074,0.00012999,2]
[419162228,1774977032750,-150.0,0.00013,2]
[419162229,1774977032759,-4124.27330374,0.00013,2]
[419162230,1774977032768,-500.0,0.00013002,2]
[419162231,1774977032777,-189.44000496,0.00013002,2]
[419162232,1774977032786,-500.0,0.00013002,2]
[419162233,1774977032796,-165.14278835,0.00013002,2]
[419162234,1774977032805,-243.65435888,0.00013002,2]
[419162235,1774977032814,-195.35161709,0.00013002,2]
[419162236,1774977032823,-500.0,0.00013002,2]
[419162237,1774977032832,-510.39256625,0.00013002,2]
[419162238,1774977032841,-179.89415903,0.00013002,2]
[419162239,1774977032851,-500.0,0.00013002,2]
[419162240,1774977032859,-500.0,0.00013002,2]
[419162241,1774977032868,-500.0,0.00013002,2]
[419162242,1774977032877,-476.86458029,0.00013002,2]
[419162243,1774977032886,-500.0,0.00013003,2]
[419162244,1774977032895,-500.0,0.00013003,2]
[419162245,1774977032905,-477.87246848,0.00013003,2]
[419162246,1774977032915,-11440.56774858,0.00013003,2]
[419162247,1774977032927,-103528.65205607,0.00013003,2]
[419162248,1774977032939,-171209.38776958,0.00013003,2]
[419162249,1774977032950,-1254.41808677,0.00013003,2]
[419162250,1774977032986,-500.0,0.00012998,2]
[419162251,1774977033020,-4089.10331,0.00013003,2]
[419162260,1774977038357,-500.0,0.00012998,2]
[419162261,1774977038366,-500.0,0.00012998,2]
[419162262,1774977038375,-513.16049576,0.00013003,2]
[419162263,1774977038387,-8149.40959513,0.00013003,2]
[419162264,1774977038462,-796.55986639,0.00013003,2]
[419162265,1774977038473,-4264.19002541,0.00013003,2]
[419162266,1774977038484,-22711.83799274,0.00013003,2]
[419162267,1774977038495,-4934.206548,0.00013003,2]
[419162268,1774977038523,-639.31888652,0.00013003,2]
[419162269,1774977038534,-4810.94195086,0.00013003,2]
[419162270,1774977038563,-8771.8,0.00013003,2]
[419162271,1774977038574,-416.12846895,0.00013003,2]
[419162272,1774977038585,-1555.98559202,0.00013003,2]
[419162273,1774977038667,-7473.26087421,0.00013003,2]
[419162297,1774977041775,-19875.52667593,0.00013003,2]
[419162298,1774977041786,-2315.09651318,0.00013003,2]
[419162303,1774977041833,-10412.4491776,0.00013003,2]
[419162305,1774977041845,-475.80353924,0.00013003,2]
[419162307,1774977041857,-6094.32242706,0.00013003,2]
[419162309,1774977041867,-547.52617999,0.00013004,2]
[419162311,1774977041876,-2115.6922,0.00013004,2]
[419162313,1774977041885,-5387.68526057,0.0001305,2]
[419162315,1774977041895,-500.0,0.00013073,2]
[419162316,1774977041904,-361.79710803,0.00013103,2]
[419162317,1774977041912,-172.94,0.0001315,2]
[419162318,1774977041921,-502.11863032,0.00013173,2]
[419162319,1774977041931,-1635.51925183,0.00013237,2]
[419162320,1774977041941,-500.0,0.00013276,2]
[419162321,1774977041951,-462.0,0.00013444,2]
[419162322,1774977041963,-600.0,0.00013568,2]
[419162323,1774977041972,-5139.63528494,0.00013568,2]
[419162324,1774977041980,-183.98654291,0.00013568,2]
[419162325,1774977041989,-1635.51925183,0.0001357,2]
[419162326,1774977041998,-428.0,0.0001357,2]
[419162327,1774977042007,-166.66,0.00013699,2]
[419162328,1774977042016,-265.38830366,0.00013699,2]
[419162329,1774977042025,-156.55,0.00013699,2]
[419162330,1774977042034,-150.0363523,0.00013738,2]
[419162331,1774977042044,-195.0,0.00013738,2]
[419162332,1774977042053,-250.0,0.00013738,2]
[419162333,1774977042062,-573.0,0.00013828,2]
[419162334,1774977042071,-166.66,0.00013836,2]
[419162335,1774977042080,-577.0,0.00013882,2]
[419162336,1774977042090,-1635.51925183,0.00013903,2]
[419162337,1774977042099,-166.66,0.00013973,2]
[419162338,1774977042108,-502.0,0.00014,2]
[419162339,1774977042117,-754.09,0.0001405,2]
[419162340,1774977042126,-4068.58163833,0.00014072,2]
[419162341,1774977042138,-1014.57903578,0.00014072,2]
[419162342,1774977042161,-695.34,0.00014072,2]
[419162343,1774977042178,-606.86932589,0.00014072,2]
[419162344,1774977042187,-547.52617991,0.00014087,2]
[419162345,1774977042198,-166.66,0.0001411,2]
[419162346,1774977042208,-498.0654533,0.00014129,2]
[419162347,1774977042220,-1.9345467,0.00014129,2]
[419162348,1774977042231,-153.52843485,0.00014133,2]
[419162349,1774977042241,-250.0,0.00014133,2]
[419162350,1774977042255,-246.52433851,0.00014142,2]
[419162351,1774977042410,-4818.92566149,0.00014142,2]
[419162352,1774977042421,-420.0,0.00014146,2]
[419162353,1774977042431,-420.0,0.00014146,2]
[419162354,1774977042440,-300.0,0.00014146,2]
[419162355,1774977042448,-150.0,0.00014179,2]
[419162356,1774977042458,-1680.0,0.00014188,2]
[419162357,1774977042467,-1635.51925183,0.00014236,2]
[419162358,1774977042476,-2000.0,0.00014243,2]
[419162359,1774977042486,-166.66,0.00014247,2]
[419162360,1774977042495,-1200.0,0.00014255,2]
[419162361,1774977042504,-420.0,0.00014255,2]
[419162362,1774977042513,-166.66,0.00014384,2]
[419162363,1774977042523,-195.9948,0.000144,7]
[419162364,1774977042532,-150.0,0.000144,2]
[419162365,1774977042540,-150.0,0.000144,2]
[419162366,1774977042549,-150.0,0.000144,2]
[419162367,1774977042558,-1635.51925183,0.00014568,2]
[419162368,1774977042567,-502.0,0.00014717,2]
[419162369,1774977042576,-500.0,0.00014779,2]
[419162370,1774977042586,-8565.75555911,0.00014779,2]
[419162371,1774977042595,-151.0,0.00014779,2]
[419162372,1774977042604,-174.61919141,0.00014779,2]
[419162373,1774977042614,-262.90206542,0.00014779,2]
[419162374,1774977042623,-172.94,0.00014793,2]
[419162375,1774977042632,-2000.0,0.000148,2]
[419162376,1774977042641,-500.0,0.00014834,2]
[419162377,1774977042651,-4519.29077533,0.00014834,2]
[419162378,1774977042659,-151.0,0.00014834,2]
[419162379,1774977042668,-272.62944185,0.00014834,2]
[419162380,1774977042678,-1635.51925183,0.00014901,2]
[419162381,1774977042687,-1571.0,0.0001504,2]
[419162382,1774977042695,-1000.0,0.00015082,2]
[419162383,1774977042705,-3000.0,0.00015082,2]
[419162384,1774977042714,-547.52617991,0.00015171,2]
[419162385,1774977042723,-1635.51925183,0.00015234,2]
[419162386,1774977042732,-150.99,0.0001531,2]
[419162387,1774977042741,-3266.56,0.0001531,2]
[419162388,1774977042750,-2174.93,0.0001531,2]
[419162389,1774977042759,-9999.99,0.0001531,2]
[419162390,1774977042769,-1552.88,0.0001531,2]
[419162391,1774977042779,-502.0,0.00015435,3]
[419162392,1774977042789,-1117.073,0.00015442,2]
[419162393,1774977042799,-266.688,0.00015442,2]
[419162394,1774977042808,-160.0,0.00015464,2]
[419162395,1774977042819,-1154.92,0.00015471,2]
[419162396,1774977042829,-636.1,0.00015471,2]
[419162397,1774977042838,-6383.25,0.00015471,2]
[419162398,1774977042848,-500.0,0.00015472,2]
[419162399,1774977042857,-500.0,0.00015472,2]
[419162400,1774977042866,-500.0,0.00015472,2]
[419162401,1774977042876,-500.0,0.00015472,2]
[419162402,1774977042886,-500.0,0.00015472,2]
[419162403,1774977042894,-500.0,0.00015472,2]
[419162404,1774977042904,-500.0,0.00015472,2]
[419162405,1774977042914,-500.0,0.00015472,2]
[419162406,1774977042928,-500.0,0.00015472,2]
[419162407,1774977042941,-500.0,0.00015472,2]
[419162408,1774977042951,-500.0,0.00015472,2]
[419162409,1774977042959,-500.0,0.00015472,2]
[419162410,1774977042968,-500.0,0.00015472,2]
[419162411,1774977042979,-500.0,0.00015472,2]
[419162412,1774977042988,-500.0,0.00015472,2]
[419162414,1774977042998,-500.0,0.00015472,2]
[419162416,1774977043008,-500.0,0.00015472,2]
[419162417,1774977043018,-500.0,0.00015472,2]
[419162418,1774977043027,-500.0,0.00015472,2]
[419162419,1774977043037,-500.0,0.00015472,2]
[419162420,1774977043045,-500.0,0.00015472,2]
[419162421,1774977043054,-500.0,0.00015472,2]
[419162422,1774977043063,-500.0,0.00015472,2]
[419162423,1774977043073,-903.0,0.00015472,2]
[419162424,1774977043083,-2091.61,0.00015507,2]
[419162425,1774977043093,-180.0,0.00015515,2]
[419162426,1774977043103,-500.0,0.00015562,2]
[419162427,1774977043112,-1635.51925183,0.00015567,2]
[419162428,1774977043122,-2351.0,0.00015606,2]
[419162429,1774977043132,-754.09,0.00015611,2]
[419162430,1774977043142,-285.0,0.00015619,2]
[419162431,1774977043152,-587.0,0.00015632,2]
[419162432,1774977043161,-1230.39798403,0.00015647,2]
[419162433,1774977043171,-222.9,0.00015655,2]
[419162434,1774977043181,-168.19276305,0.0001568,2]
[419162435,1774977043190,-394.809166,0.0001568,7]
[419162436,1774977043200,-256.0931,0.000157,12]
[419162437,1774977043209,-2469.0,0.00015822,2]
[419162438,1774977043219,-492.909,0.00015822,2]
[419162439,1774977043229,-3767.0,0.00015822,2]
[419162440,1774977043239,-2000.0,0.00015825,2]
[419162441,1774977043248,-5000.0,0.00015861,2]
[419162442,1774977043263,-168.0,0.00015871,2]
[419162443,1774977043273,-200.0,0.00015872,2]
[419162444,1774977043282,-2091.61,0.00015895,2]
[419162445,1774977043291,-755.0,0.000159,2]
[419162446,1774977043301,-231.27937692,0.000159,2]
[419162447,1774977043311,-184.04095732,0.000159,2]
[419162448,1774977043320,-1635.51925183,0.000159,2]
[419162449,1774977043330,-348.89123668,0.000159,2]
[419162450,1774977043339,-212.57079689,0.000159,2]
[419162451,1774977043348,-296.89643292,0.000159,2]
[419162452,1774977043358,-189.287613,0.00015919,7]
[419162453,1774977043367,-2808.0,0.0001596,2]
[419162454,1774977043377,-720.76921501,0.00015961,2]
[419162455,1774977043390,-10276.86394509,0.00015961,2]
[419162456,1774977043400,-5556.73830051,0.00015961,2]
[419162457,1774977043416,-454.35,0.00015961,2]
[419162458,1774977043529,-500.0,0.00015961,2]
[419162459,1774977043586,-1342.2,0.00015961,2]
[419162460,1774977043682,-341.04,0.00015961,2]
[419162467,1774977046267,-531.05025,0.00015961,2]
[419162468,1774977046483,-701.11031412,0.00015961,2]
[419162469,1774977046536,-16253.0,0.00015961,2]
[419162470,1774977046549,-427.46515504,0.00015961,2]
[419162471,1774977046645,-78598.06194175,0.00015961,2]
[419162473,1774977046807,-76220.98934178,0.00015961,2]
[419162474,1774977046816,-151.0,0.00015961,2]
[419162475,1774977046826,-4429.3532268,0.00015961,2]
[419162476,1774977046835,-151.0,0.00015961,2]
[419162477,1774977046844,-151.0,0.00015961,2]
[419162478,1774977046853,-151.0,0.00015961,2]
[419162479,1774977046862,-151.0,0.00015961,2]
[419162480,1774977046871,-229.672182,0.00015961,2]
[419162481,1774977046880,-151.0,0.00015961,2]
[419162482,1774977046889,-151.0,0.00015961,2]
[419162483,1774977046899,-151.0,0.00015961,2]
[419162484,1774977046907,-228.164723,0.00015961,2]
[419162486,1774977046917,-357.696749,0.00015961,2]
[419162487,1774977046926,-357.696749,0.00015961,2]
[419162489,1774977046935,-357.696749,0.00015961,2]
[419162490,1774977046944,-357.696749,0.00015961,2]
[419162491,1774977046953,-357.696749,0.00015961,2]
[419162492,1774977046962,-357.696749,0.00015961,2]
[419162493,1774977046971,-219.9083849,0.00015961,2]
[419162510,1774977904821,334.5429,0.000164,17]
[419162511,1774977953950,-5534.0,0.000107,3]
[419162512,1774977953973,-804.06380036,0.00011,5]
[419162513,1774978032127,-241.4775817,0.000109,2]
[419162514,1774978032148,-1200.0,0.00011099,2]
[419162515,1774978032170,-250.0,0.0001115,2]
[419162516,1774978032191,-1591.81,0.00011557,2]
[419162517,1774978032213,-199.25675492,0.00011722,2]
[419162518,1774978032236,-4730.0,0.000119,5]
[419162519,1774978032256,-295.96388095,0.0001199,2]
[419162520,1774978032276,-300.0,0.000121,2]
[419162521,1774978032299,-250.0,0.000121,2]
[419162522,1774978032319,-265.60920675,0.00012208,2]
[419162523,1774978041752,334.4861,0.000169,17]
[419162524,1774978112772,334.4293,0.000169,17]
[419162525,1774978157099,-159.13,0.00010291,2]
[419162526,1774978157120,-252.77095845,0.00010806,2]
[419162527,1774978157143,-600.0,0.0001132,2]
[419162528,1774978157165,-250.0,0.0001132,2]
[419162529,1774978157186,-600.0,0.0001132,2]
[419162530,1774978157209,-34.39079325,0.00012208,2]
[419162531,1774978157235,-1680.0,0.00012209,2]
[419162532,1774978157261,-500.0,0.00012518,2]
[419162533,1774978157286,-150.0,0.000127,2]
[419162534,1774978157311,-1200.0,0.00012772,2]
[419162535,1774978157333,-164.32847094,0.00012773,2]
[419162536,1774978157356,-500.0,0.00012773,2]
[419162537,1774978157378,-500.0,0.00012773,2]
[419162538,1774978157402,-500.0,0.00012773,2]
[419162539,1774978157427,-500.0,0.00012773,2]
[419162540,1774978157451,-334.85327011,0.00012773,2]
[419162541,1774978157473,-500.0,0.00012773,2]
[419162542,1774978157494,-502.03816504,0.00012773,2]
[419162543,1774978157520,-500.0,0.00012798,2]
[419162544,1774978157545,-500.0,0.00012798,2]
[419162545,1774978157572,-500.0,0.00012798,2]
[419162546,1774978157598,-500.0,0.00012798,2]
[419162547,1774978157623,-500.0,0.00012798,2]
[419162548,1774978157651,-500.0,0.00012798,2]
[419162549,1774978157679,-500.0,0.00012798,2]
[419162550,1774978157705,-500.0,0.00012798,2]
[419162551,1774978157733,-500.0,0.00012798,2]
[419162552,1774978157759,-500.0,0.00012798,2]
[419162553,1774978157784,-500.0,0.00012798,2]
[419162554,1774978157812,-500.0,0.00012798,2]
[419162555,1774978157846,-500.0,0.00012798,2]
[419162556,1774978157874,-549.29924622,0.00012798,2]
[419162557,1774978157904,-500.0,0.00012798,2]
[419162558,1774978157931,-500.0,0.00012798,2]
[419162559,1774978157957,-500.0,0.00012798,2]
[419162560,1774978157983,-500.0,0.00012798,2]
[419162561,1774978158009,-500.0,0.00012798,2]
[419162562,1774978158035,-500.0,0.00012798,2]
[419162563,1774978158061,-500.0,0.00012798,2]
[419162564,1774978158087,-500.0,0.00012798,2]
[419162565,1774978158114,-500.0,0.00012798,2]
[419162566,1774978158141,-500.0,0.00012798,2]
[419162567,1774978158170,-500.0,0.00012798,2]
[419162568,1774978158196,-500.0,0.00012798,2]
[419162569,1774978158221,-500.0,0.00012798,2]
[419162570,1774978158246,-500.0,0.00012798,2]
[419162571,1774978158272,-500.0,0.00012798,2]
[419162572,1774978158301,-500.0,0.00012798,2]
[419162573,1774978158329,-500.0,0.00012798,2]
[419162574,1774978158355,-500.0,0.00012798,2]
[419162575,1774978158382,-500.0,0.00012798,2]
[419162576,1774978158408,-500.0,0.00012798,2]
[419162577,1774978158438,-500.0,0.00012798,2]
[419162578,1774978158466,-500.0,0.00012798,2]
[419162579,1774978158492,-500.0,0.00012798,2]
[419162580,1774978158519,-500.0,0.00012798,2]
[419162581,1774978158545,-500.0,0.00012798,2]
[419162582,1774978158571,-500.0,0.00012798,2]
[419162583,1774978158596,-500.0,0.00012798,2]
[419162584,1774978158622,-500.0,0.00012798,2]
[419162585,1774978158653,-500.0,0.00012798,2]
[419162586,1774978158679,-600.0,0.00012798,2]
[419162587,1774978158703,-122699.47538434,0.00012799,2]
[419162588,1774978183674,334.3469,0.00017,17]
[419162597,1774978231437,-1200.0,0.00012798,2]
[419162598,1774978231446,-217.0,0.00012798,2]
[419162599,1774978231456,-150.0,0.00012798,2]
[419162600,1774978231466,-592.6673,0.00012799,2]
[419162602,1774978233355,-454.55387908,0.00012799,2]
[419162603,1774978233379,-120544.59143658,0.00012799,2]
[419162604,1774978233388,-151.0,0.00012839,2]
[419162605,1774978233397,-151.0,0.00012871,2]
[419162606,1774978233407,-500.0,0.00012873,2]
[419162607,1774978233418,-500.51190389,0.00012873,2]
[419162608,1774978233428,-500.0,0.00012873,2]
[419162609,1774978233436,-500.0,0.00012873,2]
[419162610,1774978233446,-201.11775543,0.00012873,2]
[419162611,1774978233455,-334.56830939,0.00012873,2]
[419162612,1774978233466,-500.0,0.00012873,2]
[419162613,1774978233475,-380.94089261,0.00012873,2]
[419162614,1774978233484,-500.0,0.00012873,2]
[419162615,1774978233493,-500.0,0.00012891,2]
[419162616,1774978233502,-500.0,0.00012891,2]
[419162617,1774978233511,-500.0,0.00012891,2]
[419162618,1774978233520,-200.0,0.00012891,2]
[419162619,1774978233529,-469.64399503,0.00012891,2]
[419162620,1774978233538,-151.0,0.00012891,2]
[419162621,1774978233550,-151.0,0.00012891,2]
[419162622,1774978233561,-151.0,0.00012891,2]
[419162623,1774978233570,-1289.58892491,0.00012891,2]
[419162624,1774978233580,-158744.9097,0.00012899,2]
[419162625,1774978233591,-150.0,0.000129,2]
[419162626,1774978233601,-5782.6799,0.00012903,2]
[419162627,1774978233612,-172.38,0.00012966,2]
[419162628,1774978233621,-250.0,0.00013,2]
[419162629,1774978233631,-500.0,0.00013041,2]
[419162630,1774978233641,-235.89,0.00013056,2]
[419162631,1774978233650,-1500.0,0.00013075,2]
[419162632,1774978233659,-3240.0,0.00013425,2]
[419162633,1774978233668,-286.05232566,0.00013698,2]
[419162634,1774978233677,-500.0,0.00013698,2]